bitfinex-derivatives/quotes_BTCF0:USTF0_20250711
["timestamp","ask_amount","ask_price","bid_price","bid_amount"]
[1752221987862,1.598633,118020.0,118010.0,0.1694174]
[1752221988263,1.644296,118020.0,118010.0,0.19282683]
[1752221992770,1.644296,118020.0,118010.0,0.55555499]
[1752221993063,0.2224173,118010.0,118000.0,0.6501555]
[1752221993265,0.69225028,118010.0,118000.0,0.71594277]
[1752221994265,0.69325028,118010.0,118000.0,0.71594277]
[1752221995067,0.69425028,118010.0,118000.0,0.71594277]
[1752221995663,0.69425028,118010.0,118000.0,0.68434277]
[1752221998070,0.52483298,118010.0,118000.0,0.68434277]
[1752221998466,1.03754,118010.0,118000.0,0.70515277]
[1752221998769,0.4469,118010.0,118000.0,0.73795277]
[1752221998967,1.0375,118010.0,118000.0,0.73795277]
[1752221999168,1.0675,118010.0,118000.0,0.73795277]
[1752221999767,1.0675,118010.0,118000.0,0.70515277]
[1752222000169,1.2369173,118010.0,118000.0,0.70515277]
[1752222000669,1.2369173,118010.0,118000.0,0.34242461]
[1752222000872,1.28265028,118010.0,118000.0,0.70515277]
[1752222001867,1.2369173,118010.0,118000.0,0.70515277]
[1752222002164,1.0675,118010.0,118000.0,0.6817229]
[1752222003459,1.2369173,118010.0,118000.0,0.6817229]
[1752222003973,1.5977173,118010.0,118000.0,0.6817229]
[1752222004171,1.4283,118010.0,118000.0,0.6817229]
[1752222004673,1.5977173,118010.0,118000.0,0.6817229]
[1752222005072,1.5977173,118010.0,118000.0,0.31899474]
[1752222005269,1.5977173,118010.0,118000.0,0.6817229]
[1752222005569,1.4283,118010.0,118000.0,0.6817229]
[1752222005976,0.8377,118010.0,118000.0,0.6817229]
[1752222006273,1.42818,118010.0,118000.0,0.7140229]
[1752222006571,1.42814,118010.0,118000.0,0.7140229]
[1752222007174,1.48894193,118010.0,118000.0,0.7140229]
[1752222008778,1.48894193,118010.0,118000.0,0.7586311]
[1752222009170,0.89850193,118010.0,118000.0,0.7586311]
[1752222009375,1.42806,118010.0,118000.0,0.7902211]
[1752222010475,1.39806,118010.0,118000.0,0.7902211]
[1752222010871,1.36696,118010.0,118000.0,0.8136612]
[1752222011071,1.36696,118010.0,118000.0,0.8457612]
[1752222011272,0.7766,118010.0,118000.0,0.8457612]
[1752222011470,1.00612,118010.0,118000.0,0.8457612]
[1752222011664,0.4158,118010.0,118000.0,0.8457612]
[1752222011868,1.00612,118010.0,118000.0,0.8457612]
[1752222012167,1.00612,118010.0,118000.0,1.25309756]
[1752222012168,0.002,118010.0,118000.0,1.25309756]
[1752222012372,0.63808636,118010.0,118000.0,1.25309756]
[1752222013278,0.66906636,118010.0,118000.0,1.25309756]
[1752222013477,0.07874636,118010.0,118000.0,0.8457612]
[1752222013678,0.07874636,118010.0,118000.0,1.25309756]
[1752222014888,0.07874636,118010.0,118000.0,1.16235648]
[1752222016484,0.41484,118010.0,118000.0,0.80039066]
[1752222017089,0.41384,118010.0,118000.0,0.80039066]
[1752222017389,0.41284,118010.0,118000.0,0.80039066]
[1752222018082,0.41284,118010.0,118000.0,0.76829066]
[1752222018288,0.44574,118010.0,118000.0,0.76829066]
[1752222018490,1.00952312,118010.0,118000.0,0.19456654]
[1752222018680,1.05528948,118010.0,118000.0,0.17112644]
[1752222018878,1.00952312,118010.0,118000.0,0.17112644]
[1752222019085,0.6475573,118010.0,118000.0,0.17112644]
[1752222019988,0.52389544,118010.0,118000.0,0.19479534]
[1752222021379,0.52389544,118010.0,118000.0,0.55676116]
[1752222022592,0.59121955,118010.0,118000.0,0.55676116]
[1752222022892,0.59221955,118010.0,118000.0,0.55676116]
[1752222023092,0.54846411,118010.0,118000.0,0.55676116]
[1752222025692,0.71788141,118010.0,118000.0,0.55676116]
[1752222025896,0.54846411,118010.0,118000.0,0.55676116]
[1752222026194,0.54846411,118010.0,118000.0,0.19479534]
[1752222026692,0.54846411,118010.0,118000.0,0.55676116]
[1752222027694,0.54846411,118010.0,118000.0,0.53309226]
[1752222029797,1.07984723,118010.0,118000.0,0.00169484]
[1752222029986,1.14064916,118010.0,118000.0,0.17112644]
[1752222030700,1.14064916,118010.0,118000.0,0.00169484]
[1752222030897,1.31013716,118010.0,118000.0,0.00169484]
[1752222031394,1.24933523,118010.0,118000.0,0.00169484]
[1752222032593,1.31013716,118010.0,118000.0,0.00169484]
[1752222032794,1.14064916,118010.0,118000.0,0.00169484]
[1752222035106,0.1912816,118000.0,117990.0,0.1694347]
[1752222035297,1.2385416,118000.0,117990.0,0.1694347]
[1752222036201,1.2395416,118000.0,117990.0,0.1694347]
[1752222036503,1.2405416,118000.0,117990.0,0.1694347]
[1752222037400,1.2405416,118000.0,117990.0,0.54761666]
[1752222038104,1.28625849,118000.0,117990.0,0.54761666]
[1752222038305,1.2405416,118000.0,117990.0,0.54761666]
[1752222039605,1.28625444,118000.0,117990.0,0.54761666]
[1752222039805,1.2405416,118000.0,117990.0,0.54761666]
[1752222041607,1.6013416,118000.0,117990.0,0.54761666]
[1752222041804,1.6013416,118000.0,117990.0,0.53140052]
[1752222042801,1.05716961,118000.0,117990.0,0.53140052]
[1752222043002,1.44469801,118000.0,117990.0,0.60081131]
[1752222043198,1.41329801,118000.0,117990.0,0.68678478]
[1752222043507,0.77783,118000.0,117990.0,0.68678478]
[1752222044108,1.36755,118000.0,117990.0,0.68678478]
[1752222044906,1.41325801,118000.0,117990.0,0.68678478]
[1752222046802,1.41321801,118000.0,117990.0,0.68678478]
[1752222047204,0.82353801,118000.0,117990.0,0.66341131]
[1752222047404,1.41317801,118000.0,117990.0,0.66341131]
[1752222047810,0.82353801,118000.0,117990.0,0.66341131]
[1752222048009,1.41317801,118000.0,117990.0,0.66341131]
[1752222048310,1.5369016,118000.0,117990.0,0.66341131]
[1752222048508,1.39987,118000.0,117990.0,0.66341131]
[1752222048708,1.5693016,118000.0,117990.0,0.23810549]
[1752222048908,1.6024016,118000.0,117990.0,0.23810549]
[1752222049109,1.6024016,118000.0,117990.0,0.21713549]
[1752222049314,1.6023616,118000.0,117990.0,0.18563549]
[1752222049607,2.02512935,118000.0,117990.0,0.1694347]
[1752222050312,1.07356353,118000.0,117990.0,0.1694347]
[1752222050608,1.66312353,118000.0,117990.0,0.1694347]
[1752222051709,1.96428742,118000.0,117990.0,0.1694347]
[1752222053212,2.02508935,118000.0,117990.0,0.1694347]
[1752222053610,0.191296,117990.0,117980.0,0.2118136]
[1752222053816,1.01014182,117990.0,117980.0,0.23513412]
[1752222054008,1.01014182,117990.0,117980.0,0.2118136]
[1752222054513,1.01014182,117990.0,117980.0,0.1694505]
[1752222054715,1.07094375,117990.0,117980.0,0.1694505]
[1752222055214,1.01014182,117990.0,117980.0,0.1694505]
[1752222056514,1.37094182,117990.0,117980.0,0.1694505]
[1752222057009,1.38010525,117990.0,117980.0,0.1694505]
[1752222057605,1.21065925,117990.0,117970.0,0.10215153]
[1752222057811,1.28457264,117980.0,117970.0,0.27161553]
[1752222059512,1.28457264,117980.0,117970.0,0.2118324]
[1752222059716,1.64653846,117980.0,117970.0,0.2118324]
[1752222060415,1.64653846,117980.0,117970.0,0.2148324]
[1752222064522,1.28457264,117980.0,117970.0,0.2148324]
[1752222064723,1.64653846,117980.0,117970.0,0.2148324]
[1752222065222,1.28457264,117980.0,117970.0,0.2148324]
[1752222065425,1.64653846,117980.0,117970.0,0.2148324]
[1752222068222,1.28457264,117980.0,117970.0,0.2148324]
[1752222068423,1.64653846,117980.0,117970.0,0.2148324]
[1752222069323,1.64653846,117980.0,117970.0,0.172464]
[1752222069524,1.60083642,117980.0,117970.0,0.172464]
[1752222070023,1.64653846,117980.0,117970.0,0.172464]
[1752222070625,1.28457264,117980.0,117970.0,0.172464]
[1752222072222,1.28457264,117980.0,117970.0,0.1724748]
[1752222072428,1.28457264,117980.0,117970.0,0.003]
[1752222072624,1.64653846,117980.0,117970.0,0.1724748]
[1752222072927,1.60083642,117980.0,117970.0,0.1724748]
[1752222073724,1.96163642,117980.0,117970.0,0.1724748]
[1752222073922,1.5996706,117980.0,117970.0,0.1724748]
[1752222074124,1.96163642,117980.0,117970.0,0.1724748]
[1752222074325,1.37215642,117980.0,117970.0,0.1724748]
[1752222074527,2.0070472,117980.0,117970.0,0.1724748]
[1752222074728,1.64508138,117980.0,117970.0,0.1724748]
[1752222074923,2.0070472,117980.0,117970.0,0.1724748]
[1752222076130,2.00706371,117980.0,117970.0,0.1724748]
[1752222077131,1.96139642,117980.0,117970.0,0.1724748]
[1752222078529,1.96139642,117980.0,117970.0,0.003]
[1752222078728,1.96139642,117980.0,117970.0,0.1714749]
[1752222078923,1.96239642,117980.0,117970.0,0.1714749]
[1752222079333,1.96227642,117980.0,117970.0,0.1714749]
[1752222079931,2.02407835,117980.0,117970.0,0.1694749]
[1752222081538,0.1892949,117970.0,117960.0,0.30698482]
[1752222081739,0.65847961,117970.0,117960.0,0.30698482]
[1752222082039,0.6127949,117970.0,117960.0,0.30698482]
[1752222082234,0.6127949,117970.0,117960.0,0.24394372]
[1752222082533,0.97476072,117970.0,117960.0,0.00169542]
[1752222082733,1.06646265,117970.0,117960.0,0.00169542]
[1752222082932,1.06646265,117970.0,117960.0,0.17118462]
[1752222083138,1.00566072,117970.0,117960.0,0.17118462]
[1752222083338,1.00566072,117970.0,117960.0,0.00169542]
[1752222084036,1.00566072,117970.0,117960.0,0.17118462]
[1752222084237,1.27841355,117970.0,117960.0,0.19185462]
[1752222084437,1.27841355,117970.0,117960.0,0.22435462]
[1752222085243,0.45859865,117970.0,117960.0,0.61750044]
[1752222085541,1.21711355,117970.0,117960.0,0.64800044]
[1752222085732,1.21711355,117970.0,117960.0,0.28603462]
[1752222087140,1.04763865,117970.0,117960.0,0.64800044]
[1752222087338,1.04755865,117970.0,117960.0,0.64800044]
[1752222087533,1.21703355,117970.0,117960.0,0.64800044]
[1752222088138,1.1713549,117970.0,117960.0,0.64800044]
[1752222088438,1.1713549,117970.0,117960.0,0.28603462]
[1752222088639,1.06268193,117970.0,117960.0,0.28603462]
[1752222089242,1.06268193,117970.0,117960.0,0.64800044]
[1752222091341,1.23215693,117970.0,117960.0,0.64800044]
[1752222091541,1.06268193,117970.0,117960.0,0.64800044]
[1752222092141,1.00188,117970.0,117960.0,0.64800044]
[1752222092343,1.23215693,117970.0,117960.0,0.64800044]
[1752222092743,1.171355,117970.0,117960.0,0.64800044]
[1752222093139,1.00188,117970.0,117960.0,0.64800044]
[1752222093439,1.59412275,117970.0,117960.0,0.17118482]
[1752222093642,1.65702275,117970.0,117960.0,0.17118482]
[1752222093840,1.06806275,117970.0,117960.0,0.17118482]
[1752222094046,1.65690275,117970.0,117960.0,0.17118482]
[1752222096842,1.65690275,117970.0,117960.0,0.00169542]
[1752222097042,1.59610082,117970.0,117960.0,0.00169542]
[1752222097442,1.65690275,117970.0,117960.0,0.00169542]
[1752222098147,1.65686275,117970.0,117960.0,0.00169542]
[1752222099045,0.2185995,117960.0,117950.0,0.1695025]
[1752222099248,0.2186139,117950.0,117940.0,0.2542641]
[1752222099450,1.63894214,117950.0,117940.0,0.2542641]
[1752222099850,1.2312739,117950.0,117940.0,0.2542641]
[1752222100051,1.30014767,117950.0,117940.0,0.2542641]
[1752222100852,1.34584295,117950.0,117940.0,0.28054585]
[1752222101248,0.1839226,117930.0,117920.0,0.05351599]
[1752222101549,1.90795,117930.0,117920.0,0.22306299]
[1752222101851,2.0774826,117930.0,117920.0,0.25356299]
[1752222102050,1.93905,117930.0,117920.0,0.25356299]
[1752222102251,2.1085826,117930.0,117920.0,0.25356299]
[1752222102953,1.93905,117930.0,117920.0,0.61552881]
[1752222103155,2.1085826,117930.0,117920.0,0.25356299]
[1752222103353,1.35029,117930.0,117920.0,0.64872881]
[1752222103554,1.4887226,117930.0,117920.0,0.64872881]
[1752222103742,1.4887226,117930.0,117920.0,0.65804737]
[1752222106358,1.31919,117930.0,117920.0,0.65804737]
[1752222106558,1.4887225,117930.0,117920.0,0.65804737]
[1752222107157,1.31919,117930.0,117920.0,0.65804737]
[1752222107361,1.32015,117930.0,117920.0,0.65804737]
[1752222107562,0.7226,117930.0,117920.0,0.65804737]
[1752222107764,1.31132,117930.0,117920.0,0.65804737]
[1752222108058,0.3618,117930.0,117920.0,0.65804737]
[1752222108262,0.001,117930.0,117920.0,1.45748641]
[1752222108460,0.001,117930.0,117920.0,1.48033891]
[1752222109962,0.001,117930.0,117920.0,1.48333891]
[1752222112162,0.94948,117940.0,117930.0,0.1907832]
[1752222112361,0.94948,117940.0,117930.0,0.61561902]
[1752222112663,0.94948,117940.0,117930.0,0.64631902]
[1752222113169,0.94948,117940.0,117930.0,0.66930954]
[1752222113464,0.94948,117940.0,117930.0,0.67130954]
[1752222115260,0.94948,117940.0,117930.0,0.67330954]
[1752222117172,0.3608,117940.0,117930.0,0.64100954]
[1752222117372,0.3608,117940.0,117930.0,0.67380954]
[1752222117573,0.3385564,117940.0,117930.0,0.67380954]
[1752222117773,0.9271164,117940.0,117930.0,0.67380954]
[1752222118776,0.3385564,117940.0,117930.0,0.67380954]
[1752222118975,0.9270764,117940.0,117930.0,0.67380954]
[1752222119177,0.58852,117940.0,117930.0,0.67380954]
[1752222119577,0.3608,117950.0,117940.0,0.1907689]
[1752222119778,0.99497096,117950.0,117940.0,0.64530472]
[1752222119975,0.99493096,117950.0,117940.0,0.64530472]
[1752222121675,0.99493096,117950.0,117940.0,0.64630472]
[1752222122268,0.99493096,117950.0,117940.0,0.64730472]
[1752222122478,1.02633096,117950.0,117940.0,0.64730472]
[1752222124279,1.02633096,117950.0,117940.0,0.61600472]
[1752222125478,1.05793096,117950.0,117940.0,0.61600472]
[1752222125873,1.05797096,117950.0,117940.0,0.58530472]
[1752222126078,1.23389566,117950.0,117940.0,0.58530472]
[1752222126279,1.06439096,117950.0,117940.0,0.58530472]
[1752222126581,1.23389566,117950.0,117940.0,0.2233389]
[1752222126982,1.59586148,117950.0,117940.0,0.1715189]
[1752222127182,1.59586148,117950.0,117940.0,0.2036689]
[1752222127481,1.55021052,117950.0,117940.0,0.2036689]
[1752222127981,1.61958351,117950.0,117940.0,0.2036689]
[1752222128178,1.68045146,117950.0,117940.0,0.2036689]
[1752222128386,1.08811299,117950.0,117940.0,0.2036689]
[1752222128681,1.08811299,117950.0,117940.0,0.58642472]
[1752222129286,0.57071094,117950.0,117940.0,0.58642472]
[1752222129578,1.09174299,117950.0,117940.0,0.58642472]
[1752222130675,1.13742852,117950.0,117940.0,0.58642472]
[1752222131177,0.47973553,117950.0,117940.0,0.6040762]
[1752222131378,1.06801553,117950.0,117940.0,0.6040762]
[1752222134586,1.06801553,117950.0,117940.0,0.62715751]
[1752222135887,1.06801553,117950.0,117940.0,0.6040762]
[1752222136487,1.06801553,117950.0,117940.0,0.62715808]
[1752222136685,1.06801553,117950.0,117940.0,0.6040762]
[1752222137086,1.06801553,117950.0,117940.0,0.62715808]
[1752222138085,0.47973553,117950.0,117940.0,0.62715808]
[1752222138290,0.46952553,117950.0,117940.0,0.62715808]
[1752222138493,1.05764553,117950.0,117940.0,0.65915808]
[1752222140489,1.05764553,117950.0,117940.0,0.62715808]
[1752222141182,0.47907553,117950.0,117940.0,0.62715808]
[1752222141388,1.06715553,117950.0,117940.0,0.62715808]
[1752222141785,0.47907553,117950.0,117940.0,0.62715808]
[1752222141990,1.02143,117950.0,117940.0,0.65945808]
[1752222142896,1.06711553,117950.0,117940.0,0.65945808]
[1752222143093,0.69676553,117950.0,117940.0,0.65945808]
[1752222143288,0.66516553,117950.0,117940.0,0.69165808]
[1752222143494,0.07712553,117950.0,117940.0,0.65945808]
[1752222143694,0.67471553,117950.0,117940.0,0.65945808]
[1752222144093,1.03551553,117950.0,117940.0,0.65945808]
[1752222144393,1.03551553,117950.0,117940.0,0.29749226]
[1752222144593,1.03551553,117950.0,117940.0,0.65945808]
[1752222144895,0.98983,117950.0,117940.0,0.65945808]
[1752222147895,0.44747553,117950.0,117940.0,0.65945808]
[1752222148085,1.03539553,117950.0,117940.0,0.65945808]
[1752222149796,1.03539553,117950.0,117940.0,0.69095808]
[1752222149797,1.02584553,117950.0,117940.0,0.69095808]
[1752222149991,0.43792553,117950.0,117940.0,0.69095808]
[1752222150500,1.02580553,117950.0,117940.0,0.69095808]
[1752222150699,0.43792553,117950.0,117940.0,0.69095808]
[1752222150900,0.40652553,117950.0,117940.0,0.69095808]
[1752222152003,0.04572553,117950.0,117940.0,0.69095808]
[1752222152501,4e-05,117950.0,117940.0,0.69095808]
[1752222153505,0.43778553,117960.0,117950.0,0.2214245]
[1752222153701,0.9799,117960.0,117950.0,0.6373722]
[1752222154102,0.98833,117960.0,117950.0,0.6373722]
[1752222154994,0.40053,117960.0,117950.0,0.6373722]
[1752222155201,1.03401553,117960.0,117950.0,0.6373722]
[1752222155405,1.03401553,117960.0,117950.0,0.61429032]
[1752222155605,1.03401553,117960.0,117950.0,0.61529032]
[1752222157104,0.98833,117960.0,117950.0,0.63840663]
[1752222158000,0.98833,117960.0,117950.0,0.27644081]
[1752222158205,0.98833,117960.0,117950.0,0.63840663]
[1752222158506,1.02123,117960.0,117950.0,0.63840663]
[1752222159005,1.02123,117960.0,117950.0,0.24554081]
[1752222159202,1.02123,117960.0,117950.0,0.60750663]
[1752222160307,1.02127,117960.0,117950.0,0.60750663]
[1752222165410,1.02127,117960.0,117950.0,0.24554081]
[1752222165714,1.02634,117960.0,117950.0,0.22525081]
[1752222166416,1.02634,117960.0,117950.0,0.58721663]
[1752222166913,1.02634,117960.0,117950.0,0.22525081]
[1752222167113,1.02634,117960.0,117950.0,0.60750663]
[1752222169116,0.43878,117960.0,117950.0,0.60750663]
[1752222169417,0.66023,117960.0,117950.0,0.60750663]
[1752222169714,1.02103,117960.0,117950.0,0.60750663]
[1752222173219,0.66023,117960.0,117950.0,0.60750663]
[1752222173420,1.02103,117960.0,117950.0,0.60750663]
[1752222174120,1.02099,117960.0,117950.0,0.60750663]
[1752222174319,1.02099,117960.0,117950.0,0.63980663]
[1752222174518,0.43347,117960.0,117950.0,0.63980663]
[1752222174821,1.02099,117960.0,117950.0,0.63980663]
[1752222178616,0.40057,117960.0,117950.0,0.63980663]
[1752222178816,0.3955,117970.0,117960.0,0.1897805]
[1752222179021,0.3955,117970.0,117960.0,0.96845845]
[1752222179221,0.98298,117970.0,117960.0,0.96845845]
[1752222179421,0.98298,117970.0,117960.0,0.60649263]
[1752222179628,0.3955,117970.0,117960.0,0.60649263]
[1752222179922,0.3628,117970.0,117960.0,0.96845845]
[1752222180217,0.3628,117970.0,117960.0,1.03095845]
[1752222180422,0.04568553,117980.0,117970.0,0.2213962]
[1752222180724,0.40648553,117980.0,117970.0,0.60648269]
[1752222180915,1.02506553,117980.0,117970.0,0.60648269]
[1752222181112,0.97938,117980.0,117970.0,0.60548259]
[1752222181522,0.61858,117980.0,117970.0,0.61441832]
[1752222181722,0.61958,117980.0,117970.0,0.61441832]
[1752222181918,0.65278,117980.0,117970.0,0.61441832]
[1752222182223,0.65174,117980.0,117970.0,0.61441832]
[1752222182518,1.01254,117980.0,117970.0,0.61441832]
[1752222183824,1.01254,117980.0,117970.0,0.61541832]
[1752222185126,0.4251,117980.0,117970.0,0.61541832]
[1752222185525,0.4251,117980.0,117970.0,0.59229775]
[1752222185829,0.4251,117980.0,117970.0,0.64593175]
[1752222186225,0.0643,117980.0,117970.0,0.64593175]
[1752222186922,0.4251,117980.0,117970.0,0.64593175]
[1752222187919,0.4251,117980.0,117970.0,0.61543175]
[1752222189020,0.47078553,117980.0,117970.0,0.59229775]
[1752222190929,0.4251,117980.0,117970.0,0.61545829]
[1752222191120,1.01242,117980.0,117970.0,0.24455674]
[1752222192331,1.1818817,117980.0,117970.0,0.24455674]
[1752222192728,1.01242,117980.0,117970.0,0.24455674]
[1752222192928,1.01242,117980.0,117970.0,0.60652256]
[1752222193827,1.1818817,117980.0,117970.0,0.60652256]
[1752222194235,1.01242,117980.0,117970.0,0.60652256]
[1752222195029,0.65162,117980.0,117970.0,0.60652256]
[1752222195234,1.01242,117980.0,117970.0,0.60652256]
[1752222195435,1.05810553,117980.0,117970.0,0.58336202]
[1752222196737,1.01242,117980.0,117970.0,0.60651771]
[1752222196935,1.05810553,117980.0,117970.0,0.60651771]
[1752222200337,1.05810553,117980.0,117970.0,0.58336202]
[1752222201038,0.47078553,117980.0,117970.0,0.58336202]
[1752222201241,1.05802553,117980.0,117970.0,0.58336202]
[1752222201845,1.05802553,117980.0,117970.0,0.60652567]
[1752222202049,0.47078553,117980.0,117970.0,0.60652567]
[1752222202346,0.43758553,117980.0,117970.0,0.60652567]
[1752222202547,1.02482553,117980.0,117970.0,0.66992567]
[1752222202846,0.99372553,117980.0,117970.0,0.66992567]
[1752222203042,0.38363543,117980.0,117970.0,0.60652567]
[1752222203246,0.3608,117990.0,117980.0,0.2218517]
[1752222203447,0.94804,117990.0,117980.0,0.68646566]
[1752222204143,0.3608,117990.0,117980.0,0.62306566]
[1752222204349,0.4226,117990.0,117980.0,0.62306566]
[1752222204644,0.49099206,118010.0,118000.0,0.221823]
[1752222204838,1.01732411,118010.0,118000.0,0.58378882]
[1752222205539,1.07819206,118010.0,118000.0,0.58378882]
[1752222206552,1.01086795,118010.0,118000.0,0.22995226]
[1752222206850,0.95,118010.0,118000.0,0.59191808]
[1752222207052,0.951,118010.0,118000.0,0.59191808]
[1752222207651,0.98184,118010.0,118000.0,0.59191808]
[1752222207949,1.01484,118010.0,118000.0,0.58278882]
[1752222209446,0.36384,118010.0,118000.0,0.58278882]
[1752222209646,0.95096,118010.0,118000.0,0.64698882]
[1752222210148,0.95096,118010.0,118000.0,0.65587831]
[1752222211547,0.95096,118010.0,118000.0,0.29391249]
[1752222211750,0.95096,118010.0,118000.0,0.65587831]
[1752222212753,0.00304,118010.0,118000.0,1.03368761]
[1752222214351,0.00304,118010.0,118000.0,0.30975597]
[1752222214549,0.00304,118010.0,118000.0,1.03368761]
[1752222216860,1e-07,118010.0,118000.0,1.03368761]
[1752222218554,1e-07,118010.0,118000.0,1.03538245]
[1752222219059,1e-07,118010.0,118000.0,0.67341663]
[1752222219358,1e-07,118010.0,118000.0,1.26037663]
[1752222219754,1e-07,118010.0,118000.0,0.67341663]
[1752222219957,1e-07,118010.0,118000.0,1.26033663]
[1752222221060,1e-07,118010.0,118000.0,1.62230245]
[1752222221256,1e-07,118010.0,118000.0,1.03538245]
[1752222221458,1e-07,118010.0,118000.0,0.67341663]
[1752222224361,0.04551719,118010.0,118000.0,0.67341663]
[1752222226758,0.04551719,118010.0,118000.0,1.03538245]
[1752222227764,1e-07,118010.0,118000.0,1.05041068]
[1752222228264,1e-07,118010.0,118000.0,1.41221068]
[1752222228965,1e-07,118010.0,118000.0,1.41121068]
[1752222229165,1e-07,118010.0,118000.0,1.41321068]
[1752222230366,1e-07,118010.0,118000.0,1.41421068]
[1752222230866,1e-07,118010.0,118000.0,1.41621068]
[1752222231063,1e-07,118010.0,118000.0,1.41595074]
[1752222232868,1e-07,118010.0,118000.0,1.05515074]
[1752222233764,1e-07,118010.0,118000.0,1.03228998]
[1752222233956,1e-07,118010.0,118000.0,0.30835834]
[1752222234362,1e-07,118010.0,118000.0,0.67032416]
[1752222236168,1e-07,118010.0,118000.0,1.25704416]
[1752222236570,1e-07,118010.0,118000.0,0.67032416]
[1752222236769,1e-07,118010.0,118000.0,0.60612416]
[1752222236970,0.3608001,118010.0,118000.0,0.60612416]
[1752222237170,0.4257001,118010.0,118000.0,0.60612416]
[1752222237371,0.4257001,118010.0,118000.0,0.63515416]
[1752222240171,0.4257001,118010.0,118000.0,0.69825416]
[1752222241475,1e-07,118010.0,118000.0,1.05405074]
[1752222242579,1e-07,118010.0,118000.0,0.3301191]
[1752222242771,1e-07,118010.0,118000.0,1.05405074]
[1752222242973,1e-07,118010.0,118000.0,1.03118998]
[1752222243777,1e-07,118010.0,118000.0,1.39198998]
[1752222243975,1e-07,118010.0,118000.0,1.41485074]
[1752222245182,1e-07,118010.0,118000.0,2.00149074]
[1752222246980,1e-07,118010.0,118000.0,1.41485074]
[1752222247275,1e-07,118010.0,118000.0,2.00145074]
[1752222252381,1e-07,118010.0,118000.0,1.97858998]
[1752222252784,1e-07,118010.0,118000.0,2.00905999]
[1752222255388,1e-07,118010.0,118000.0,2.00705999]
[1752222255588,1e-07,118010.0,118000.0,2.00905999]
[1752222257194,1e-07,118010.0,118000.0,1.28512835]
[1752222257396,1e-07,118010.0,118000.0,2.00705999]
[1752222257691,1e-07,118010.0,118000.0,2.00905999]
[1752222262392,1e-07,118010.0,118000.0,2.03191764]
[1752222263392,1e-07,118010.0,118000.0,2.00905999]
[1752222275393,1e-07,118010.0,118000.0,2.054765]
[1752222276400,1e-07,118010.0,118000.0,2.00905999]
[1752222278797,1e-07,118010.0,118000.0,2.00909693]
[1752222281399,1e-07,118010.0,118000.0,2.05480194]
[1752222284900,1e-07,118010.0,118000.0,2.14523082]
[1752222287702,1e-07,118010.0,118000.0,2.14323082]
[1752222287897,1e-07,118010.0,118000.0,2.14523082]
[1752222288502,0.0243969,118020.0,118010.0,0.1694185]
[1752222288700,0.40631709,118030.0,118020.0,0.2172242]
[1752222288899,0.40631709,118030.0,118020.0,1.68859012]
[1752222289692,0.3608,118030.0,118020.0,1.71147222]
[1752222289903,0.40631709,118030.0,118020.0,1.68859012]
[1752222290904,0.40631709,118030.0,118020.0,1.23611083]
[1752222291202,0.40631709,118030.0,118020.0,1.23711083]
[1752222291401,0.3608,118030.0,118020.0,1.25999293]
[1752222291903,0.3931,118030.0,118020.0,1.25999293]
[1752222292605,0.3931,118030.0,118020.0,1.23811083]
[1752222293005,0.3931,118030.0,118020.0,1.26099293]
[1752222293402,0.3931,118030.0,118020.0,1.23811083]
[1752222294104,0.3931,118030.0,118020.0,1.26099293]
[1752222294406,0.3931,118030.0,118020.0,1.29199293]
[1752222294605,0.3931,118030.0,118020.0,0.70599293]
[1752222294808,0.3931,118030.0,118020.0,1.29187293]
[1752222295406,0.3931,118030.0,118020.0,1.26899083]
[1752222296109,0.3931,118030.0,118020.0,1.29187293]
[1752222296408,0.3931,118030.0,118020.0,1.26899083]
[1752222297510,0.3931,118030.0,118020.0,0.68311083]
[1752222297807,0.3931,118030.0,118020.0,1.26895083]
[1752222298909,0.04551709,118040.0,118030.0,0.2172099]
[1752222299108,1.05615709,118050.0,118040.0,0.1887455]
[1752222299308,1.01064,118050.0,118040.0,0.57907673]
[1752222299506,1.180064,118050.0,118040.0,0.57907673]
[1752222299706,1.22571655,118050.0,118040.0,0.57907673]
[1752222299998,1.180064,118050.0,118040.0,0.57907673]
[1752222300604,1.0106,118050.0,118040.0,0.57907673]
[1752222300804,1.180024,118050.0,118040.0,0.57907673]
[1752222301711,1.07146795,118050.0,118040.0,0.57907673]
[1752222301910,1.0106,118050.0,118040.0,0.57907673]
[1752222302114,1.05625166,118050.0,118040.0,0.60210174]
[1752222304420,1.05625166,118050.0,118040.0,0.57907673]
[1752222306920,1.05625166,118050.0,118040.0,0.61814773]
[1752222307123,1.05625166,118050.0,118040.0,0.2562665]
[1752222307421,1.05625166,118050.0,118040.0,0.61814773]
[1752222308922,1.05625166,118050.0,118040.0,0.62712201]
[1752222309516,0.47045166,118050.0,118040.0,0.62712201]
[1752222309821,1.02525166,118050.0,118040.0,0.62712201]
[1752222310125,0.04765166,118050.0,118040.0,0.65792201]
[1752222310425,0.40845166,118050.0,118040.0,0.69102201]
[1752222310924,0.3628,118050.0,118040.0,0.69102201]
[1752222312322,0.3628,118050.0,118040.0,1.86222201]
[1752222312825,0.3628,118050.0,118040.0,1.90736798]
[1752222312826,0.002,118050.0,118040.0,1.90736798]
[1752222313519,0.002,118050.0,118040.0,2.31439518]
[1752222313520,0.3628,118050.0,118040.0,2.31439518]
[1752222314324,0.3628,118050.0,118040.0,1.90736798]
[1752222314620,0.002,118050.0,118040.0,1.90736798]
[1752222314924,0.002,118050.0,118040.0,2.31439518]
[1752222316229,0.002,118050.0,118040.0,2.31539518]
[1752222317929,0.002,118050.0,118040.0,2.31639518]
[1752222318229,0.00204,118050.0,118040.0,1.14519518]
[1752222318424,0.00204,118050.0,118040.0,1.73067518]
[1752222320426,0.00204,118050.0,118040.0,2.09147518]
[1752222320631,1.02395166,118070.0,118060.0,0.2181568]
[1752222320929,1.02395166,118070.0,118060.0,0.625184]
[1752222321124,1.02395166,118070.0,118060.0,0.656584]
[1752222321832,1.02395166,118070.0,118060.0,0.2495568]
[1752222322030,1.02395166,118070.0,118060.0,0.656584]
[1752222322229,1.3853272,118070.0,118060.0,0.656584]
[1752222322730,1.4622783,118070.0,118060.0,0.67964014]
[1752222323429,1.4622783,118070.0,118060.0,0.656584]
[1752222324724,1.4623183,118070.0,118060.0,0.2495568]
[1752222325034,1.4623183,118070.0,118060.0,0.656584]
[1752222325327,1.0552911,118070.0,118060.0,0.656584]
[1752222326933,1.4623183,118070.0,118060.0,0.656584]
[1752222327534,0.8769183,118070.0,118060.0,0.656584]
[1752222327834,1.4165072,118070.0,118060.0,0.67964534]
[1752222329136,1.5858396,118070.0,118060.0,0.67964534]
[1752222329633,1.1788124,118070.0,118060.0,0.67964534]
[1752222329928,0.42424,118070.0,118060.0,0.67964534]
[1752222330132,1.1787725,118070.0,118060.0,0.27261814]
[1752222330333,1.1787725,118070.0,118060.0,0.67964534]